fUST/lending_fUST_20250213
["ID","MTS","AMOUNT","RATE_DAILY","PERIOD"]
[352910384,1739415038684,-889.79989812,0.00012009,2]
[352910443,1739415040928,-3232.05449018,0.00012009,2]
[352910599,1739416124617,20668.0,0.00014,30]
[352910640,1739416231943,-1165.21029347,0.00010367,2]
[352910642,1739416231953,-400.0,0.00010685,2]
[352910644,1739416231962,-300.0,0.00011559,2]
[352910646,1739416231971,-13268.2024785,0.0001156,2]
[352910648,1739416231981,-2885.19700165,0.00011763,5]
[352910650,1739416231990,-32320.05763152,0.00011764,5]
[352910652,1739416231999,-24900.0,0.00011764,2]
[352910654,1739416232009,-197.46062031,0.00011909,2]
[352910656,1739416232019,-431.5574889,0.00012178,2]
[352910658,1739416232028,-154.6337486,0.00012178,2]
[352910660,1739416232038,-154.6337486,0.00012178,2]
[352910662,1739416232049,-154.6337486,0.00012178,2]
[352910664,1739416232059,-420.0,0.00012695,2]
[352910666,1739416232069,-154.649,0.0001271,2]
[352910668,1739416232079,-200.0,0.000128,4]
[352910670,1739416232089,-200.0,0.000128,4]
[352910672,1739416232099,-201.28,0.000128,4]
[352910674,1739416232109,-201.28,0.000128,4]
[352910676,1739416232118,-200.0,0.000128,6]
[352910678,1739416232128,-198.86889676,0.000128,5]
[352910680,1739416232137,-263.6898724,0.000128,2]
[352910682,1739416232147,-217.680871,0.000128,2]
[352910684,1739416232157,-436.6776622,0.000128,2]
[352910686,1739416232166,-354.5948991,0.000128,2]
[352910687,1739416232175,-191.3128393,0.000128,2]
[352910689,1739416232185,-215.8799648,0.000128,2]
[352910690,1739416232194,-154.6337486,0.000128,2]
[352910692,1739416232205,-276.8768402,0.00012992,2]
[352910693,1739416232214,-500.0,0.00012999,2]
[352910695,1739416232224,-500.0,0.00012999,2]
[352910697,1739416232234,-500.0,0.00012999,2]
[352910699,1739416232243,-500.0,0.00012999,2]
[352910700,1739416232253,-500.0,0.00012999,2]
[352910701,1739416232263,-502.60293462,0.00012999,2]
[352910702,1739416232274,-195.18094603,0.00012999,2]
[352910703,1739416232284,-388.26871952,0.00012999,2]
[352910704,1739416232294,-500.0,0.00012999,2]
[352910705,1739416232304,-500.0,0.00012999,2]
[352910706,1739416232313,-502.09265349,0.00012999,2]
[352910707,1739416232322,-195.18094603,0.00012999,2]
[352910708,1739416232333,-500.0,0.00012999,2]
[352910709,1739416232347,-500.0,0.00012999,2]
[352910710,1739416232360,-500.0,0.00012999,2]
[352910711,1739416232375,-500.0,0.00012999,2]
[352910712,1739416232385,-168.6064256,0.00012999,2]
[352910713,1739416232419,-331.3935744,0.00012999,2]
[352910714,1739416232430,-304.81905397,0.00012999,2]
[352910715,1739416232441,-6461.84002647,0.00013,2]
[352910747,1739416237743,-151.0,0.00012999,2]
[352910749,1739416237753,-5621.42327337,0.00013,2]
[352911369,1739416245884,-151.0,0.00012999,2]
[352911371,1739416245894,-149.0,0.00012999,2]
[352911375,1739416245942,-2.0,0.00012999,2]
[352911377,1739416245952,-1442.59850083,0.00013,5]
[352911379,1739416245963,-68120.77435864,0.00013,2]
[352911381,1739416245972,-2500.0,0.00013,2]
[352911382,1739416245981,-501.40494496,0.00013,2]
[352911384,1739416245991,-151.0,0.00013,2]
[352911386,1739416246000,-151.0,0.00013,2]
[352911388,1739416246010,-257.544422,0.00013,2]
[352911390,1739416246020,-257.544422,0.00013,2]
[352911392,1739416246030,-265.533273,0.00013,2]
[352911394,1739416246041,-265.533273,0.00013,2]
[352911396,1739416246051,-151.0,0.00013,2]
[352911398,1739416246061,-151.0,0.00013,2]
[352911400,1739416246070,-151.0,0.00013,2]
[352911402,1739416246081,-200.0,0.00013,6]
[352911404,1739416246090,-200.0,0.00013,7]
[352911406,1739416246100,-200.0,0.00013,7]
[352911408,1739416246109,-168.520456,0.00013,2]
[352911410,1739416246118,-151.0,0.00013,2]
[352911412,1739416246128,-168.520456,0.00013,2]
[352911413,1739416246137,-152.178969,0.00013,2]
[352911415,1739416246147,-151.0,0.00013,2]
[352911417,1739416246157,-724.92077,0.00013,2]
[352911419,1739416246166,-724.92077,0.00013,2]
[352911421,1739416246176,-196.906149,0.00013,2]
[352911423,1739416246184,-151.0,0.00013,2]
[352911425,1739416246195,-196.906149,0.00013,2]
[352911427,1739416246204,-151.0,0.00013,2]
[352911429,1739416246213,-151.0,0.00013,2]
[352911431,1739416246223,-151.0,0.00013,2]
[352911432,1739416246232,-151.0,0.00013,2]
[352911434,1739416246243,-151.0,0.00013,2]
[352911436,1739416246253,-364.457515,0.00013,2]
[352911438,1739416246262,-364.457515,0.00013,2]
[352911440,1739416246271,-1448.476986,0.00013,2]
[352911442,1739416246280,-1448.476986,0.00013,2]
[352911444,1739416246289,-152.570659,0.00013,2]
[352911446,1739416246299,-151.716088,0.00013,2]
[352911448,1739416246308,-151.0,0.00013,2]
[352911450,1739416246317,-151.0,0.00013,2]
[352911452,1739416246326,-151.0,0.00013,2]
[352911454,1739416246336,-151.0,0.00013,2]
[352911456,1739416246346,-151.0,0.00013,2]
[352911458,1739416246362,-151.0,0.00013,2]
[352911460,1739416246371,-163.78950936,0.0001315,2]
[352911462,1739416246381,-162.0200286,0.0001315,2]
[352911464,1739416246391,-500.0,0.0001315,2]
[352911466,1739416246403,-500.58652612,0.0001315,2]
[352911467,1739416246412,-500.0,0.0001315,2]
[352911469,1739416246422,-500.0,0.0001315,2]
[352911471,1739416246435,-151.0,0.00013235,2]
[352911473,1739416246445,-257.544422,0.00013235,2]
[352911475,1739416246454,-257.544422,0.00013235,2]
[352911477,1739416246464,-151.0,0.00013235,2]
[352911479,1739416246473,-151.0,0.00013235,2]
[352911481,1739416246483,-151.0,0.00013235,2]
[352911482,1739416246492,-151.0,0.00013235,2]
[352911484,1739416246501,-151.0,0.00013235,2]
[352911486,1739416246511,-38475.31207035,0.00013236,3]
[352911488,1739416246521,-151.0,0.00013236,2]
[352911490,1739416246531,-151.0,0.00013236,2]
[352911492,1739416246540,-151.0,0.00013236,2]
[352911494,1739416246550,-151.0,0.00013236,2]
[352911496,1739416246559,-257.544422,0.00013236,2]
[352911498,1739416246569,-257.544422,0.00013236,2]
[352911500,1739416246580,-265.533273,0.00013236,2]
[352911502,1739416246590,-265.533273,0.00013236,2]
[352911504,1739416246599,-151.0,0.00013236,2]
[352911506,1739416246608,-190.763662,0.00013236,2]
[352911507,1739416246617,-151.0,0.00013236,2]
[352911509,1739416246627,-168.520456,0.00013236,2]
[352911511,1739416246636,-151.0,0.00013236,2]
[352911513,1739416246646,-168.520456,0.00013236,2]
[352911515,1739416246656,-151.0,0.00013236,2]
[352911517,1739416246665,-724.92077,0.00013236,2]
[352911519,1739416246675,-724.92077,0.00013236,2]
[352911521,1739416246684,-196.906149,0.00013236,2]
[352911523,1739416246694,-151.0,0.00013236,2]
[352911525,1739416246705,-196.906149,0.00013236,2]
[352911527,1739416246716,-151.0,0.00013236,2]
[352911529,1739416246726,-151.0,0.00013236,2]
[352911531,1739416246736,-151.0,0.00013236,2]
[352911533,1739416246747,-151.0,0.00013236,2]
[352911535,1739416246757,-151.0,0.00013236,2]
[352911536,1739416246766,-364.457515,0.00013236,2]
[352911538,1739416246776,-364.457515,0.00013236,2]
[352911540,1739416246785,-1448.476986,0.00013236,2]
[352911542,1739416246795,-1448.476986,0.00013236,2]
[352911544,1739416246804,-151.0,0.00013236,2]
[352911556,1739416246914,-151.0,0.00013236,2]
[352911558,1739416246925,-151.0,0.00013236,2]
[352911560,1739416246934,-151.0,0.00013236,2]
[352911561,1739416246944,-151.0,0.00013236,2]
[352911562,1739416246954,-560.8862594,0.00013244,2]
[352911563,1739416246963,-384.60228237,0.00013278,2]
[352912858,1739416963137,300.0,8.842e-05,2]
[352913027,1739417432079,-400.0,0.00010685,2]
[352913028,1739417432090,-151.0,0.00012544,2]
[352913029,1739417432102,-300.0,0.0001255,2]
[352913030,1739417432113,-24900.0,0.00012551,2]
[352913031,1739417432123,-154.643,0.0001262,2]
[352913032,1739417432134,-186.3967942,0.00012844,2]
[352913033,1739417432145,-197.46062031,0.00012899,2]
[352913034,1739417432162,-293.53091033,0.000129,2]
[352913035,1739417432177,-151.0,0.00012999,2]
[352913036,1739417432188,-151.0,0.00013,2]
[352913037,1739417432198,-151.0,0.00013,2]
[352913039,1739417432209,-13268.202478,0.00013023,2]
[352913058,1739417432390,-347.27538723,0.00013044,2]
[352913060,1739417432401,-155.8142976,0.000131,2]
[352913062,1739417432411,-314.1610671,0.000131,2]
[352913064,1739417432421,-306.4532908,0.000131,2]
[352913066,1739417432431,-498.2218617,0.00013145,2]
[352913068,1739417432440,-151.642543,0.00013236,2]
[352913070,1739417432451,-585.14059017,0.00013277,2]
[352913071,1739417432461,-500.0,0.00013408,2]
[352913073,1739417432471,-293.53091031,0.00013527,2]
[352913075,1739417432480,-191.762532,0.00013699,2]
[352913077,1739417432490,-420.0,0.0001377,2]
[352913079,1739417432499,-9052.75768734,0.00014,2]
[352913081,1739417432509,-297.6025915,0.00014103,2]
[352913083,1739417432519,-293.53091031,0.00014156,2]
[352913085,1739417432529,-160.0,0.00014187,3]
[352913087,1739417432538,-151.0,0.000142,2]
[352913089,1739417432548,-215.297,0.00014264,2]
[352913091,1739417432558,-160.0,0.00014458,4]
[352913093,1739417432567,-316.0,0.0001451,2]
[352913095,1739417432578,-859.70268266,0.00014659,2]
[352913100,1739417432622,-881.630046,0.00014659,2]
[352913509,1739417438027,-292.57029508,0.00013277,2]
[352913511,1739417438037,-5697.36480412,0.00014659,2]
[352913513,1739417438048,-501.56720479,0.0001468,2]
[352913516,1739417438058,-193.1674669,0.00014699,2]
[352913518,1739417438068,-500.0,0.00014699,2]
[352913520,1739417438077,-500.0,0.00014699,2]
[352913522,1739417438086,-293.9805231,0.00014699,2]
[352913524,1739417438096,-500.0,0.00014699,2]
[352913526,1739417438105,-386.93278269,0.00014699,2]
[352913528,1739417438118,-113.06721731,0.00014699,2]
[352913530,1739417438127,-500.0,0.00014699,2]
[352913532,1739417438136,-500.0,0.00014699,2]
[352913534,1739417438146,-499.99999999,0.00014699,2]
[352913536,1739417438156,-151.0,0.000147,2]
[352913538,1739417438165,-151.0,0.000147,2]
[352913540,1739417438175,-151.0,0.000147,2]
[352913542,1739417438184,-151.577562,0.000147,2]
[352913544,1739417438194,-67310.88493903,0.000147,2]
[352914611,1739417527822,10000.0,8.842e-05,2]
[352914693,1739418632396,-252.76129741,0.00010685,2]
[352914695,1739418632408,-147.23870259,0.00010685,2]
[352914696,1739418632417,-500.0,0.00013408,2]
[352914698,1739418632427,-300.0,0.0001362,2]
[352914700,1739418632436,-5617.63612919,0.00013621,2]
[352914973,1739418640339,-1000.0,0.00013621,2]
[352915149,1739418643410,-500.0,0.00013621,2]
[352915969,1739419398107,10000.0,8.842e-05,2]
[352915970,1739419422699,10000.0,8.842e-05,2]
[352915971,1739419453106,10000.0,8.842e-05,2]
[352915974,1739419468429,10000.0,8.842e-05,2]
[352915975,1739419485506,10000.0,8.842e-05,2]
[352915976,1739419502036,10000.0,8.842e-05,2]
[352915977,1739419517082,5454.35,8.842e-05,2]
[352916111,1739419838401,-400.0,0.00010685,2]
[352916113,1739419838411,-32.98458677,0.00012724,2]
[352916119,1739419838503,-267.01541323,0.00012724,2]
[352916120,1739419838513,-1095.01256097,0.00012725,2]
[352916223,1739419840594,-1235.16873239,0.00012725,2]
[352916315,1739419843461,-432.58530482,0.00012725,2]
[352916316,1739419843503,-2334.52853655,0.00012725,2]
[352916612,1739419846410,-976.0,0.00012725,2]
[352917855,1739421038561,-400.0,0.00010685,2]
[352917857,1739421038571,-285.98432837,0.00011756,2]
[352917866,1739421038667,-14.01567163,0.00011756,2]
[352917867,1739421038677,-11333.5441383,0.00011757,2]
[352918102,1739421043885,-721.29925042,0.00011757,5]
[352918103,1739421043895,-689.3147287,0.00011757,2]
[352918123,1739421046603,-10925.3721529,0.00011757,2]
[352918324,1739422237788,-909.84501414,0.00010472,2]
[352918326,1739422237798,-396.59178,0.00010685,2]
[352918328,1739422237808,-213.54717165,0.00011236,2]
[352918533,1739422240066,-650.65101388,0.00011236,2]
[352918535,1739422240079,-435.501069,0.00011236,2]
[352918773,1739422242947,-734.72054788,0.00011236,2]
[352918775,1739422242960,-2064.3334361,0.00011236,2]
[352918792,1739422243144,-375.481998,0.00011236,2]
[352918793,1739422243157,-538.05455007,0.00011236,2]
[352918794,1739422243173,-358.08949814,0.00011236,2]
[352918795,1739422243184,-1085.07349445,0.00011236,2]
[352918832,1739422245799,-5450.20922943,0.00011236,2]
[352918834,1739422245810,-300.0,0.00011484,2]
[352918836,1739422245820,-1951.7689801,0.00011757,2]
[352918837,1739422245830,-214.31,0.00012601,2]
[352918839,1739422245841,-152.0,0.00012601,2]
[352918841,1739422245850,-152.0,0.00012601,2]
[352918842,1739422245860,-152.0,0.00012601,2]
[352918843,1739422245870,-152.0,0.00012601,2]
[352918844,1739422245880,-152.0,0.00012601,2]
[352918845,1739422245889,-420.0,0.00012613,2]
[352918846,1739422245900,-421.55339146,0.00012999,2]
[352918847,1739422245909,-360.64962521,0.00012999,5]
[352918848,1739422245919,-16160.02881576,0.00013,5]
[352918849,1739422245928,-5621.42327337,0.00013,2]
[352918850,1739422245937,-151.0,0.00013,2]
[352918851,1739422245947,-153.013837,0.00013,2]
[352918852,1739422245957,-151.0,0.00013,2]
[352918853,1739422245967,-151.0,0.00013,2]
[352918854,1739422245976,-151.204814,0.00013,2]
[352918855,1739422245986,-151.0,0.00013,2]
[352918856,1739422245996,-151.0,0.00013,2]
[352918857,1739422246008,-151.0,0.00013,2]
[352918858,1739422246018,-151.0,0.00013,2]
[352918859,1739422246027,-173.420564,0.00013,2]
[352918860,1739422246036,-180.281095,0.00013,2]
[352918861,1739422246046,-180.281095,0.00013,2]
[352918862,1739422246055,-180.281095,0.00013,2]
[352918863,1739422246064,-180.281095,0.00013,2]
[352918864,1739422246074,-180.281095,0.00013,2]
[352918865,1739422246085,-151.0,0.00013,2]
[352918866,1739422246094,-151.0,0.00013,2]
[352918867,1739422246104,-151.0,0.00013,2]
[352918868,1739422246113,-151.814223,0.00013,2]
[352918869,1739422246122,-151.0,0.00013,2]
[352918870,1739422246132,-151.0,0.00013,2]
[352918871,1739422246142,-151.0,0.00013,2]
[352918872,1739422246151,-151.0,0.00013,2]
[352918873,1739422246164,-291.566012,0.00013,2]
[352918874,1739422246174,-291.566012,0.00013,2]
[352918875,1739422246183,-291.566012,0.00013,2]
[352918876,1739422246193,-291.566012,0.00013,2]
[352918877,1739422246204,-291.566012,0.00013,2]
[352918878,1739422246213,-291.566012,0.00013,2]
[352918879,1739422246222,-291.566012,0.00013,2]
[352918880,1739422246232,-291.566012,0.00013,2]
[352918881,1739422246245,-291.566012,0.00013,2]
[352918882,1739422246257,-291.566012,0.00013,2]
[352918883,1739422246267,-151.0,0.00013,2]
[352918884,1739422246279,-151.0,0.00013,2]
[352918885,1739422246291,-151.0,0.00013,2]
[352918886,1739422246300,-151.0,0.00013,2]
[352918887,1739422246310,-151.0,0.00013,2]
[352918888,1739422246320,-151.0,0.00013,2]
[352918889,1739422246330,-151.0,0.00013,2]
[352918890,1739422246340,-151.0,0.00013,2]
[352918891,1739422246350,-151.0,0.00013,2]
[352918892,1739422246361,-151.0,0.00013,2]
[352918893,1739422246371,-151.0,0.00013,2]
[352918894,1739422246381,-151.0,0.00013,2]
[352918895,1739422246390,-151.0,0.00013,2]
[352918896,1739422246400,-151.0,0.00013,2]
[352918897,1739422246409,-151.0,0.00013,2]
[352918898,1739422246419,-287.78172,0.00013,2]
[352918899,1739422246428,-151.0,0.00013,2]
[352918900,1739422246438,-151.0,0.00013,2]
[352918901,1739422246447,-151.47552,0.00013,2]
[352918902,1739422246456,-151.0,0.00013,2]
[352918903,1739422246466,-579.936616,0.00013,2]
[352918904,1739422246475,-151.0,0.00013,2]
[352918905,1739422246485,-579.936616,0.00013,2]
[352918906,1739422246496,-151.0,0.00013,2]
[352918907,1739422246509,-579.936616,0.00013,2]
[352918908,1739422246519,-151.0,0.00013,2]
[352918909,1739422246528,-579.936616,0.00013,2]
[352918910,1739422246537,-151.0,0.00013,2]
[352918911,1739422246547,-151.0,0.00013,2]
[352918912,1739422246556,-208.781381,0.00013,2]
[352918913,1739422246565,-579.936616,0.00013,2]
[352918914,1739422246575,-579.936616,0.00013,2]
[352918915,1739422246585,-579.936616,0.00013,2]
[352918916,1739422246595,-579.936616,0.00013,2]
[352918917,1739422246604,-579.936616,0.00013,2]
[352918918,1739422246614,-579.936616,0.00013,2]
[352918919,1739422246623,-579.936616,0.00013,2]
[352918920,1739422246634,-579.936616,0.00013,2]
[352918921,1739422246644,-579.936616,0.00013,2]
[352918922,1739422246654,-579.936616,0.00013,2]
[352918923,1739422246664,-579.936616,0.00013,2]
[352918924,1739422246673,-579.936616,0.00013,2]
[352918925,1739422246683,-579.936616,0.00013,2]
[352918926,1739422246693,-579.936616,0.00013,2]
[352918927,1739422246703,-579.936616,0.00013,2]
[352918928,1739422246717,-299.023639,0.00013,2]
[352918929,1739422246730,-579.936613,0.00013,2]
[352918930,1739422246740,-151.0,0.00013,2]
[352918931,1739422246751,-151.0,0.00013,2]
[352918932,1739422246760,-159.78322,0.00013,2]
[352918933,1739422246773,-226.539876,0.00013,2]
[352918934,1739422246782,-151.0,0.00013,2]
[352918935,1739422246792,-151.0,0.00013,2]
[352918936,1739422246802,-151.0,0.00013,2]
[352918937,1739422246813,-151.0,0.00013,2]
[352918938,1739422246824,-151.0,0.00013,2]
[352918939,1739422246834,-151.0,0.00013,2]
[352918940,1739422246844,-151.0,0.00013,2]
[352918941,1739422246855,-151.0,0.00013,2]
[352918942,1739422246866,-151.0,0.00013,2]
[352918943,1739422246876,-151.0,0.00013,2]
[352918944,1739422246885,-151.0,0.00013,2]
[352918945,1739422246896,-243.465915,0.00013,2]
[352918946,1739422246906,-212.426618,0.00013,2]
[352918947,1739422246915,-212.426618,0.00013,2]
[352918948,1739422246925,-212.426618,0.00013,2]
[352918949,1739422246935,-212.426618,0.00013,2]
[352918950,1739422246945,-212.426618,0.00013,2]
[352918951,1739422246954,-212.426618,0.00013,2]
[352918952,1739422246964,-212.426618,0.00013,2]
[352918953,1739422246974,-212.426618,0.00013,2]
[352918954,1739422246984,-212.426618,0.00013,2]
[352918955,1739422246995,-212.426618,0.00013,2]
[352918956,1739422247008,-212.426618,0.00013,2]
[352918957,1739422247018,-212.426618,0.00013,2]
[352918958,1739422247028,-212.426618,0.00013,2]
[352918959,1739422247038,-212.426618,0.00013,2]
[352918960,1739422247047,-212.426618,0.00013,2]
[352918961,1739422247057,-212.426618,0.00013,2]
[352918962,1739422247187,-212.426618,0.00013,2]
[352918963,1739422247198,-212.426618,0.00013,2]
[352918964,1739422247210,-212.426618,0.00013,2]
[352918965,1739422247221,-212.42662,0.00013,2]
[352918966,1739422247231,-151.0,0.00013,2]
[352918967,1739422247241,-151.0,0.00013,2]
[352918968,1739422247254,-151.0,0.00013,2]
[352918969,1739422247266,-151.0,0.00013,2]
[352918970,1739422247276,-157.060446,0.00013,2]
[352918971,1739422247285,-492.570698,0.00013,2]
[352918972,1739422247295,-492.570698,0.00013,2]
[352918973,1739422247305,-492.570698,0.00013,2]
[352918974,1739422247316,-492.570698,0.00013,2]
[352918975,1739422247327,-492.570698,0.00013,2]
[352918976,1739422247338,-492.570698,0.00013,2]
[352918977,1739422247349,-492.570698,0.00013,2]
[352918978,1739422247360,-492.570698,0.00013,2]
[352918979,1739422247371,-492.570698,0.00013,2]
[352918980,1739422247381,-492.570698,0.00013,2]
[352918981,1739422247390,-492.570698,0.00013,2]
[352918982,1739422247400,-492.570698,0.00013,2]
[352918983,1739422247410,-492.570698,0.00013,2]
[352918984,1739422247420,-492.570698,0.00013,2]
[352918985,1739422247430,-492.570698,0.00013,2]
[352918986,1739422247440,-418.20723336,0.00013,2]
[352918987,1739422247461,-74.36346464,0.00013,2]
[352918988,1739422247472,-492.570698,0.00013,2]
[352918989,1739422247484,-5.56583736,0.00013,2]
[352919000,1739422623531,500.0,1.3e-05,2]
[352919058,1739423432092,-171.8,0.0001,2]
[352919060,1739423432102,-376.762191,0.00010685,2]
[352919062,1739423432113,-6527.31541958,0.00011869,2]
[352919064,1739423432125,-8112.65685743,0.00011869,2]
[352919067,1739423432141,-1558.86644373,0.00011869,2]
[352919069,1739423432153,-298.20582391,0.00011869,2]
[352919076,1739423432210,-1163.20630606,0.00011869,2]
[352919106,1739423437949,-4386.9978675,0.00011869,2]
[352919111,1739423438005,-2852.75128179,0.00011869,2]
[352919113,1739423438015,-13270.63763847,0.00012772,2]
[352919114,1739423438027,-666.4744941,0.00012869,2]
[352919116,1739423438036,-183.45681897,0.000129,2]
[352919117,1739423438046,-292.57029508,0.00012999,2]
[352919119,1739423438056,-404.2546208,0.00012999,2]
[352919121,1739423438065,-8080.01440788,0.00013,5]
[352919122,1739423438075,-10993.45092298,0.00013,2]
[352919124,1739423438084,-151.0,0.00013,2]
[352919126,1739423438093,-151.0,0.00013,2]
[352919127,1739423438103,-151.0,0.00013,2]
[352919128,1739423438115,-151.0,0.00013,2]
[352919129,1739423438125,-151.0,0.00013,2]
[352919130,1739423438134,-151.0,0.00013,2]
[352919131,1739423438144,-152.010353,0.00013,2]
[352919132,1739423438153,-151.0,0.00013,2]
[352919133,1739423438163,-151.0,0.00013,2]
[352919134,1739423438173,-151.909001,0.00013,2]
[352919135,1739423438182,-151.0,0.00013,2]
[352919136,1739423438191,-151.0,0.00013,2]
[352919137,1739423438200,-151.0,0.00013,2]
[352919138,1739423438210,-151.0,0.00013,2]
[352919139,1739423438219,-151.0,0.00013,2]
[352919140,1739423438228,-152.673701,0.00013,2]
[352919141,1739423438238,-272.93062526,0.00013,2]
[352919142,1739423438247,-5644.331,0.00013,2]
[352919143,1739423438257,-151.0,0.00013,2]
[352919144,1739423438266,-151.0,0.00013,2]
[352919145,1739423438275,-152.701376,0.00013,2]
[352919146,1739423438284,-151.0,0.00013,2]
[352919147,1739423438294,-151.0,0.00013,2]
[352919148,1739423438304,-242.860142,0.00013,2]
[352919149,1739423438313,-151.0,0.00013,2]
[352919150,1739423438322,-151.0,0.00013,2]
[352919151,1739423438331,-151.0,0.00013,2]
[352919152,1739423438340,-151.0,0.00013,2]
[352919153,1739423438349,-151.0,0.00013,2]
[352919154,1739423438359,-151.0,0.00013,2]
[352919155,1739423438369,-151.0,0.00013,2]
[352919156,1739423438379,-151.0,0.00013,2]
[352919157,1739423438388,-151.0,0.00013,2]
[352919158,1739423438397,-151.0,0.00013,2]
[352919159,1739423438406,-151.0,0.00013,2]
[352919160,1739423438415,-151.0,0.00013,2]
[352919161,1739423438424,-151.0,0.00013,2]
[352919162,1739423438433,-151.0,0.00013,2]
[352919163,1739423438451,-151.0,0.00013,2]
[352919164,1739423438465,-151.0,0.00013,2]
[352919165,1739423438474,-151.0,0.00013,2]
[352919166,1739423438483,-151.0,0.00013,2]
[352919167,1739423438493,-197.660118,0.00013,2]
[352919168,1739423438502,-151.0,0.00013,2]
[352919169,1739423438648,-151.0,0.00013,2]
[352919170,1739423438664,-151.0,0.00013,2]
[352919171,1739423438675,-151.0,0.00013,2]
[352919172,1739423438685,-151.0,0.00013,2]
[352919173,1739423438696,-151.0,0.00013,2]
[352919174,1739423438707,-151.0,0.00013,2]
[352919175,1739423438718,-151.0,0.00013,2]
[352919176,1739423438728,-151.0,0.00013,2]
[352919177,1739423438738,-151.0,0.00013,2]
[352919178,1739423438748,-151.0,0.00013,2]
[352919179,1739423438757,-151.0,0.00013,2]
[352919180,1739423438767,-151.0,0.00013,2]
[352919181,1739423438776,-151.0,0.00013,2]
[352919182,1739423438786,-151.0,0.00013,2]
[352919183,1739423438795,-151.0,0.00013,2]
[352919184,1739423438805,-288.216429,0.00013,2]
[352919185,1739423438814,-151.0,0.00013,2]
[352919186,1739423438823,-151.0,0.00013,2]
[352919187,1739423438833,-151.0,0.00013,2]
[352919188,1739423438842,-151.0,0.00013,2]
[352919189,1739423438851,-151.0,0.00013,2]
[352919190,1739423438861,-151.0,0.00013,2]
[352919191,1739423438871,-151.0,0.00013,2]
[352919192,1739423438881,-151.0,0.00013,2]
[352919193,1739423438890,-151.0,0.00013,2]
[352919194,1739423438900,-151.0,0.00013,2]
[352919195,1739423438909,-151.0,0.00013,2]
[352919196,1739423438919,-151.0,0.00013,2]
[352919197,1739423438928,-151.0,0.00013,2]
[352919198,1739423438938,-151.0,0.00013,2]
[352919199,1739423438948,-151.0,0.00013,2]
[352919200,1739423438957,-151.0,0.00013,2]
[352919201,1739423438967,-280.32729,0.00013,2]
[352919202,1739423438976,-151.0,0.00013,2]
[352919203,1739423438986,-151.0,0.00013,2]
[352919204,1739423438995,-151.0,0.00013,2]
[352919205,1739423439004,-151.0,0.00013,2]
[352919206,1739423439013,-151.0,0.00013,2]
[352919207,1739423439022,-151.0,0.00013,2]
[352919208,1739423439032,-151.0,0.00013,2]
[352919209,1739423439041,-151.0,0.00013,2]
[352919210,1739423439050,-151.0,0.00013,2]